[Event "Early-Titled-Tuesday-Blitz-October-17-2023"]
[Site "Chess.com"]
[Date "2023.10.17"]
[Round "4"]
[White "GP9isback23"]
[Black "vladislavkovalev"]
[Result "1/2-1/2"]
[WhiteElo "2666"]
[BlackElo "2866"]
[TimeControl "180+1"]
[EndTime "8:41:58 PDT"]
[Termination "Game drawn by repetition"]

1. d4 {[%clk 0:02:59.6]} 1... Nf6 {[%clk 0:03:00.1]} 2. Nf3 {[%clk 0:02:59.9]}
2... e6 {[%clk 0:03:00.5]} 3. c4 {[%clk 0:02:58.1]} 3... b6 {[%clk 0:03:01]} 4.
e3 {[%clk 0:02:52.4]} 4... Bb7 {[%clk 0:02:58.7]} 5. Be2 {[%clk 0:02:49.1]} 5...
Bb4+ {[%clk 0:02:59.2]} 6. Bd2 {[%clk 0:02:48.9]} 6... Bxd2+ {[%clk 0:02:59.4]}
7. Qxd2 {[%clk 0:02:46.3]} 7... O-O {[%clk 0:02:58.9]} 8. Nc3 {[%clk 0:02:45.9]}
8... Ne4 {[%clk 0:02:58.6]} 9. Nxe4 {[%clk 0:02:45.9]} 9... Bxe4 {[%clk
0:02:59.5]} 10. O-O {[%clk 0:02:46.5]} 10... d6 {[%clk 0:02:59.2]} 11. Rfd1
{[%clk 0:02:41.8]} 11... Nd7 {[%clk 0:02:59.1]} 12. Qc3 {[%clk 0:02:35.1]} 12...
f5 {[%clk 0:02:58.2]} 13. Nd2 {[%clk 0:02:35.3]} 13... Bb7 {[%clk 0:02:58.5]}
14. Bf3 {[%clk 0:02:35.9]} 14... Bxf3 {[%clk 0:02:58.1]} 15. Nxf3 {[%clk
0:02:35.9]} 15... Qf6 {[%clk 0:02:57.7]} 16. Rac1 {[%clk 0:02:35.1]} 16... Rae8
{[%clk 0:02:50.5]} 17. b4 {[%clk 0:02:33.8]} 17... e5 {[%clk 0:02:51.1]} 18.
dxe5 {[%clk 0:02:30.4]} 18... Nxe5 {[%clk 0:02:50.4]} 19. Nxe5 {[%clk
0:02:28.2]} 19... Rxe5 {[%clk 0:02:51.3]} 20. g3 {[%clk 0:02:16.2]} 20... g5
{[%clk 0:02:48.3]} 21. Rd5 {[%clk 0:02:14.9]} 21... Rfe8 {[%clk 0:02:36.1]} 22.
c5 {[%clk 0:02:08.4]} 22... dxc5 {[%clk 0:02:10.5]} 23. bxc5 {[%clk 0:02:01.6]}
23... Qe6 {[%clk 0:02:07.5]} 24. Rxe5 {[%clk 0:01:49.7]} 24... Qxe5 {[%clk
0:02:08.4]} 25. cxb6 {[%clk 0:01:44.9]} 25... cxb6 {[%clk 0:02:08.3]} 26. Qb3+
{[%clk 0:01:36.6]} 26... Qe6 {[%clk 0:02:00.6]} 27. Qb5 {[%clk 0:01:21.5]} 27...
Rd8 {[%clk 0:01:50.2]} 28. a4 {[%clk 0:01:08.5]} 28... g4 {[%clk 0:01:41.3]} 29.
a5 {[%clk 0:00:35.6]} 29... Rd5 {[%clk 0:01:35.5]} 30. Rc8+ {[%clk 0:00:30.5]}
30... Kf7 {[%clk 0:01:18.8]} 31. Rc7+ {[%clk 0:00:24.4]} 31... Kg6 {[%clk
0:01:18.9]} 32. Qc4 {[%clk 0:00:08.5]} 32... Qe5 {[%clk 0:00:19.1]} 33. Rc6+
{[%clk 0:00:07]} 33... Kh5 {[%clk 0:00:11.2]} 34. axb6 {[%clk 0:00:05.5]} 34...
axb6 {[%clk 0:00:11.4]} 35. Rxb6 {[%clk 0:00:02.2]} 35... Rd7 {[%clk 0:00:04.6]}
36. Kg2 {[%clk 0:00:02.6]} 36... Rc7 {[%clk 0:00:04.6]} 37. Qf4 {[%clk
0:00:02.7]} 37... Qd5+ {[%clk 0:00:04.8]} 38. e4 {[%clk 0:00:01.6]} 38... Qxe4+
{[%clk 0:00:04.3]} 39. Qxe4 {[%clk 0:00:02.1]} 39... fxe4 {[%clk 0:00:05.2]} 40.
Re6 {[%clk 0:00:02.5]} 40... Rc4 {[%clk 0:00:04.9]} 41. Re5+ {[%clk 0:00:03]}
41... Kg6 {[%clk 0:00:05.5]} 42. Re6+ {[%clk 0:00:03.9]} 42... Kg5 {[%clk
0:00:05.4]} 43. Ra6 {[%clk 0:00:04.8]} 43... h5 {[%clk 0:00:05.8]} 44. Ra5+
{[%clk 0:00:05.4]} 44... Kg6 {[%clk 0:00:06.4]} 45. Ra6+ {[%clk 0:00:05.7]}
45... Kg5 {[%clk 0:00:07.1]} 46. Ra5+ {[%clk 0:00:06.6]} 46... Kf6 {[%clk
0:00:06.2]} 47. Ra6+ {[%clk 0:00:07.5]} 47... Kf5 {[%clk 0:00:06]} 48. Ra5+
{[%clk 0:00:08.1]} 48... Kg6 {[%clk 0:00:06.5]} 49. Ra6+ {[%clk 0:00:08.7]}
49... Kg7 {[%clk 0:00:06.5]} 50. Ra5 {[%clk 0:00:09.4]} 50... Kh6 {[%clk
0:00:03.3]} 51. Ra6+ {[%clk 0:00:09.6]} 51... Kg5 {[%clk 0:00:03.9]} 1/2-1/2

[Event "Early-Titled-Tuesday-Blitz-October-17-2023"]
[Site "Chess.com"]
[Date "2023.10.17"]
[Round "4"]
[White "GMKrikor"]
[Black "DanielTitichoca"]
[Result "1-0"]
[WhiteElo "2815"]
[BlackElo "2570"]
[TimeControl "180+1"]
[EndTime "8:41:58 PDT"]
[Termination "GMKrikor won by resignation"]

1. Nf3 {[%clk 0:03:00.9]} 1... c5 {[%clk 0:02:56.4]} 2. c4 {[%clk 0:03:00.8]}
2... Nc6 {[%clk 0:02:56]} 3. Nc3 {[%clk 0:03:01]} 3... g6 {[%clk 0:02:56.3]} 4.
d4 {[%clk 0:02:58]} 4... cxd4 {[%clk 0:02:56.5]} 5. Nxd4 {[%clk 0:02:58.9]} 5...
Bg7 {[%clk 0:02:57]} 6. e3 {[%clk 0:02:59.6]} 6... Nf6 {[%clk 0:02:52.7]} 7. Nc2
{[%clk 0:02:58.8]} 7... O-O {[%clk 0:02:51.6]} 8. e4 {[%clk 0:02:59.5]} 8... d6
{[%clk 0:02:48.9]} 9. Be2 {[%clk 0:02:59.3]} 9... Nd7 {[%clk 0:02:44.6]} 10. Be3
{[%clk 0:02:58.8]} 10... a5 {[%clk 0:02:44.4]} 11. Qd2 {[%clk 0:02:58.6]} 11...
Nc5 {[%clk 0:02:44.2]} 12. f3 {[%clk 0:02:58.6]} 12... a4 {[%clk 0:02:32.1]} 13.
O-O {[%clk 0:02:57.7]} 13... Qa5 {[%clk 0:02:27.2]} 14. Na3 {[%clk 0:02:52.1]}
14... Be6 {[%clk 0:02:20]} 15. Rfd1 {[%clk 0:02:41.7]} 15... Rfc8 {[%clk
0:02:12.2]} 16. Rac1 {[%clk 0:02:40.6]} 16... Ne5 {[%clk 0:02:00.4]} 17. Nd5
{[%clk 0:02:26.9]} 17... Bxd5 {[%clk 0:01:55.3]} 18. Qxa5 {[%clk 0:02:23.7]}
18... Rxa5 {[%clk 0:01:54.3]} 19. cxd5 {[%clk 0:02:23.3]} 19... Rb8 {[%clk
0:01:33.8]} 20. Nb5 {[%clk 0:02:08.3]} 20... Ned3 {[%clk 0:01:26.7]} 21. Bxd3
{[%clk 0:00:53.8]} 21... Nxd3 {[%clk 0:01:25.7]} 22. Rxd3 {[%clk 0:00:54.7]}
22... Rxb5 {[%clk 0:01:24.7]} 23. b3 {[%clk 0:00:55.4]} 23... axb3 {[%clk
0:00:21.7]} 24. Rxb3 {[%clk 0:00:56.3]} 24... Rxb3 {[%clk 0:00:18.8]} 25. axb3
{[%clk 0:00:57.2]} 25... h5 {[%clk 0:00:18.9]} 26. Rc7 {[%clk 0:00:54.8]} 26...
Bf6 {[%clk 0:00:19]} 27. Kf1 {[%clk 0:00:38.3]} 27... b5 {[%clk 0:00:16.6]} 28.
Ke2 {[%clk 0:00:35.8]} 28... b4 {[%clk 0:00:16.7]} 29. Kd3 {[%clk 0:00:34.9]}
29... Kf8 {[%clk 0:00:15.5]} 30. Kc4 {[%clk 0:00:30.3]} 30... Ke8 {[%clk
0:00:15.1]} 31. Ba7 {[%clk 0:00:28.5]} 31... Ra8 {[%clk 0:00:14.5]} 32. Kb5
{[%clk 0:00:27.2]} 32... Kd8 {[%clk 0:00:12.5]} 33. Kc6 {[%clk 0:00:26.9]} 33...
Be5 {[%clk 0:00:08.9]} 34. Rd7+ {[%clk 0:00:21.6]} 34... Ke8 {[%clk 0:00:08.7]}
35. Rb7 {[%clk 0:00:20.5]} 35... Rc8+ {[%clk 0:00:06.9]} 36. Rc7 {[%clk
0:00:21]} 36... Ra8 {[%clk 0:00:05.3]} 37. Kb7 {[%clk 0:00:21.2]} 37... Rd8
{[%clk 0:00:05.2]} 38. h3 {[%clk 0:00:16.2]} 38... Bc3 {[%clk 0:00:04.2]} 39.
Bb6 {[%clk 0:00:15.6]} 39... e6 {[%clk 0:00:03.3]} 40. Rc8 {[%clk 0:00:08.9]}
40... Rxc8 {[%clk 0:00:02.6]} 41. Kxc8 {[%clk 0:00:09.8]} 41... exd5 {[%clk
0:00:02.8]} 42. exd5 {[%clk 0:00:10.7]} 42... Ke7 {[%clk 0:00:03.1]} 43. Kc7
{[%clk 0:00:10.6]} 43... Be5 {[%clk 0:00:02.6]} 44. Ba5 {[%clk 0:00:10.8]} 44...
f5 {[%clk 0:00:03]} 45. Bxb4 {[%clk 0:00:10.7]} 45... g5 {[%clk 0:00:03.7]} 46.
Bd2 {[%clk 0:00:10.5]} 46... g4 {[%clk 0:00:03.7]} 47. b4 {[%clk 0:00:10.7]}
47... gxh3 {[%clk 0:00:01.2]} 48. gxh3 {[%clk 0:00:11]} 48... Kf6 {[%clk
0:00:01.8]} 49. f4 {[%clk 0:00:09.8]} 49... Bd4 {[%clk 0:00:01.2]} 50. Kxd6
{[%clk 0:00:08.5]} 1-0

[Event "Early-Titled-Tuesday-Blitz-October-17-2023"]
[Site "Chess.com"]
[Date "2023.10.17"]
[Round "4"]
[White "dodoucb"]
[Black "supereagles1201"]
[Result "1-0"]
[WhiteElo "2544"]
[BlackElo "2358"]
[TimeControl "180+1"]
[EndTime "8:41:59 PDT"]
[Termination "dodoucb won on time"]

1. d4 {[%clk 0:03:00.9]} 1... d5 {[%clk 0:02:58.8]} 2. c4 {[%clk 0:03:01.4]}
2... e6 {[%clk 0:02:59]} 3. Nc3 {[%clk 0:03:01.4]} 3... a6 {[%clk 0:02:59.2]} 4.
e4 {[%clk 0:02:59.5]} 4... dxe4 {[%clk 0:02:58.5]} 5. Nxe4 {[%clk 0:02:59.9]}
5... Bb4+ {[%clk 0:02:59.1]} 6. Nc3 {[%clk 0:02:58.8]} 6... c5 {[%clk
0:02:53.8]} 7. Be3 {[%clk 0:02:56.2]} 7... cxd4 {[%clk 0:02:51.8]} 8. Qxd4
{[%clk 0:02:52.5]} 8... Qxd4 {[%clk 0:02:50.3]} 9. Bxd4 {[%clk 0:02:53.4]} 9...
Nf6 {[%clk 0:02:49.5]} 10. a3 {[%clk 0:02:53.5]} 10... Be7 {[%clk 0:02:45.4]}
11. Nf3 {[%clk 0:02:50.6]} 11... Nc6 {[%clk 0:02:44.8]} 12. Bb6 {[%clk
0:02:49.7]} 12... Nd7 {[%clk 0:02:42.7]} 13. Be3 {[%clk 0:02:48.2]} 13... Bc5
{[%clk 0:02:34]} 14. Bf4 {[%clk 0:02:43.6]} 14... f6 {[%clk 0:02:28.2]} 15. Ne4
{[%clk 0:02:38.5]} 15... e5 {[%clk 0:02:22.5]} 16. Nxc5 {[%clk 0:02:38.2]} 16...
Nxc5 {[%clk 0:02:20.1]} 17. Be3 {[%clk 0:02:37.9]} 17... Nb3 {[%clk 0:02:14.2]}
18. Rd1 {[%clk 0:02:38.5]} 18... Be6 {[%clk 0:02:04.5]} 19. Be2 {[%clk
0:02:38.3]} 19... Ke7 {[%clk 0:01:53.4]} 20. O-O {[%clk 0:02:36.2]} 20... Rhd8
{[%clk 0:01:50.7]} 21. Bb6 {[%clk 0:02:28.6]} 21... Rxd1 {[%clk 0:01:49.1]} 22.
Rxd1 {[%clk 0:02:29.5]} 22... Rc8 {[%clk 0:01:43]} 23. h3 {[%clk 0:02:05.6]}
23... Nca5 {[%clk 0:01:38.8]} 24. Nd2 {[%clk 0:02:04.4]} 24... Nxd2 {[%clk
0:01:36.3]} 25. Bxa5 {[%clk 0:02:02.3]} 25... Nxc4 {[%clk 0:01:31]} 26. Bb4+
{[%clk 0:02:02.7]} 26... Kf7 {[%clk 0:01:30.5]} 27. b3 {[%clk 0:01:44.9]} 27...
a5 {[%clk 0:01:06.8]} 28. Bxc4 {[%clk 0:01:39.9]} 28... axb4 {[%clk 0:00:57.9]}
29. Rd7+ {[%clk 0:01:38.7]} 29... Ke8 {[%clk 0:00:52.2]} 30. Bxe6 {[%clk
0:01:31.9]} 30... bxa3 {[%clk 0:00:51.2]} 31. Rd2 {[%clk 0:01:30.5]} 31... Ra8
{[%clk 0:00:39.5]} 32. b4 {[%clk 0:01:29.2]} 32... Ke7 {[%clk 0:00:38]} 33. Bb3
{[%clk 0:01:26.7]} 33... Ra6 {[%clk 0:00:33.9]} 34. b5 {[%clk 0:01:21.2]} 34...
Ra5 {[%clk 0:00:31.2]} 35. Bc4 {[%clk 0:01:21.1]} 35... Ra4 {[%clk 0:00:30]} 36.
Rc2 {[%clk 0:01:21.2]} 36... Rb4 {[%clk 0:00:24.9]} 37. Kh2 {[%clk 0:01:16.3]}
37... Rb2 {[%clk 0:00:24.2]} 38. Rc3 {[%clk 0:01:13.1]} 38... Rxf2 {[%clk
0:00:18.8]} 39. Rxa3 {[%clk 0:01:12]} 39... Rc2 {[%clk 0:00:18.3]} 40. Bd5
{[%clk 0:01:11.1]} 40... b6 {[%clk 0:00:16.9]} 41. Ra7+ {[%clk 0:01:08.7]} 41...
Kd6 {[%clk 0:00:17.4]} 42. Bc6 {[%clk 0:01:06.6]} 42... g5 {[%clk 0:00:14]} 43.
Rxh7 {[%clk 0:01:03.1]} 43... Rc4 {[%clk 0:00:12.8]} 44. Rd7+ {[%clk 0:01:02.9]}
44... Ke6 {[%clk 0:00:12.4]} 45. Rb7 {[%clk 0:00:55.5]} 45... e4 {[%clk
0:00:11]} 46. Rxb6 {[%clk 0:00:53.3]} 46... Ke5 {[%clk 0:00:11.3]} 47. Rb8
{[%clk 0:00:50.5]} 47... Kf4 {[%clk 0:00:11.4]} 48. Re8 {[%clk 0:00:50.1]} 48...
f5 {[%clk 0:00:11.5]} 49. Re6 {[%clk 0:00:42.5]} 49... Rb4 {[%clk 0:00:11.1]}
50. Rf6 {[%clk 0:00:35.3]} 50... Rb2 {[%clk 0:00:10]} 51. Bd7 {[%clk 0:00:32.5]}
51... Ke3 {[%clk 0:00:09.1]} 52. Rxf5 {[%clk 0:00:30.2]} 52... Kd3 {[%clk
0:00:05.6]} 53. Rxg5 {[%clk 0:00:30.2]} 53... e3 {[%clk 0:00:05.8]} 54. Bf5+
{[%clk 0:00:30.7]} 54... Kd2 {[%clk 0:00:05.4]} 55. Bg4 {[%clk 0:00:31.3]} 55...
e2 {[%clk 0:00:04.9]} 56. Rd5+ {[%clk 0:00:30.6]} 56... Kc3 {[%clk 0:00:03.8]}
57. Re5 {[%clk 0:00:30.1]} 57... Rxb5 {[%clk 0:00:02.7]} 58. Rxe2 {[%clk
0:00:28.6]} 58... Kd3 {[%clk 0:00:02.1]} 59. Rf2 {[%clk 0:00:29]} 59... Ke3
{[%clk 0:00:01.4]} 60. Rf3+ {[%clk 0:00:29.9]} 60... Ke4 {[%clk 0:00:01.6]} 61.
Kg3 {[%clk 0:00:30.8]} 1-0

[Event "Early-Titled-Tuesday-Blitz-October-17-2023"]
[Site "Chess.com"]
[Date "2023.10.17"]
[Round "4"]
[White "AleksanderHnydiuk"]
[Black "zsoltkorpics"]
[Result "1-0"]
[WhiteElo "2514"]
[BlackElo "2332"]
[TimeControl "180+1"]
[EndTime "8:42:02 PDT"]
[Termination "AleksanderHnydiuk won by resignation"]

1. d4 {[%clk 0:03:00.9]} 1... Nf6 {[%clk 0:02:50.2]} 2. c4 {[%clk 0:03:00.7]}
2... e6 {[%clk 0:02:43.4]} 3. Nc3 {[%clk 0:03:00.4]} 3... Bb4 {[%clk 0:02:39.8]}
4. f3 {[%clk 0:03:00.2]} 4... c5 {[%clk 0:02:37.4]} 5. d5 {[%clk 0:02:59.2]}
5... b5 {[%clk 0:02:35.8]} 6. e4 {[%clk 0:02:56.7]} 6... O-O {[%clk 0:02:26.7]}
7. Ne2 {[%clk 0:02:51.3]} 7... bxc4 {[%clk 0:02:21.2]} 8. a3 {[%clk 0:02:51.4]}
8... Ba5 {[%clk 0:02:03.8]} 9. Nf4 {[%clk 0:02:50.8]} 9... e5 {[%clk 0:01:50.2]}
10. Nh3 {[%clk 0:02:45.7]} 10... d6 {[%clk 0:01:48.8]} 11. Nf2 {[%clk
0:02:40.9]} 11... Bxc3+ {[%clk 0:01:40.2]} 12. bxc3 {[%clk 0:02:40.4]} 12... Qa5
{[%clk 0:01:41.1]} 13. Qc2 {[%clk 0:02:30.2]} 13... Ba6 {[%clk 0:01:30.8]} 14.
Be2 {[%clk 0:02:24]} 14... Nbd7 {[%clk 0:01:28.1]} 15. O-O {[%clk 0:02:22.4]}
15... Rab8 {[%clk 0:01:28.2]} 16. Nd1 {[%clk 0:02:16.6]} 16... Rb3 {[%clk
0:01:20]} 17. Bd2 {[%clk 0:02:14.7]} 17... Rxa3 {[%clk 0:01:11.1]} 18. Rxa3
{[%clk 0:02:05.7]} 18... Qxa3 {[%clk 0:01:12]} 19. Ne3 {[%clk 0:02:05.7]} 19...
Rb8 {[%clk 0:01:05.3]} 20. Nxc4 {[%clk 0:01:59.5]} 20... Qb3 {[%clk 0:00:52.3]}
21. Qxb3 {[%clk 0:01:56.9]} 21... Rxb3 {[%clk 0:00:53.2]} 22. Ra1 {[%clk
0:01:56.9]} 22... Bxc4 {[%clk 0:00:50.1]} 23. Bxc4 {[%clk 0:01:57.8]} 23... Rb7
{[%clk 0:00:46.9]} 24. Kf2 {[%clk 0:01:43.2]} 24... Nb6 {[%clk 0:00:42.6]} 25.
Bb5 {[%clk 0:01:38]} 25... Kf8 {[%clk 0:00:37.8]} 26. Ke2 {[%clk 0:01:29.7]}
26... Ke7 {[%clk 0:00:35.9]} 27. Bc6 {[%clk 0:01:27.3]} 27... Rc7 {[%clk
0:00:35.1]} 28. Kd3 {[%clk 0:01:27.5]} 28... Nfd7 {[%clk 0:00:32.6]} 29. c4
{[%clk 0:01:20.3]} 29... Nb8 {[%clk 0:00:31.8]} 30. Bb5 {[%clk 0:01:20.3]} 30...
a6 {[%clk 0:00:29.2]} 31. Ba4 {[%clk 0:01:08.5]} 31... Nxa4 {[%clk 0:00:27.1]}
32. Rxa4 {[%clk 0:01:09.4]} 32... Rb7 {[%clk 0:00:26.7]} 33. Kc2 {[%clk
0:01:08.3]} 33... g6 {[%clk 0:00:20.3]} 34. f4 {[%clk 0:01:00.5]} 34... f6
{[%clk 0:00:16.4]} 35. g4 {[%clk 0:01:00.4]} 35... exf4 {[%clk 0:00:14.3]} 36.
Bxf4 {[%clk 0:01:01.3]} 36... g5 {[%clk 0:00:14]} 37. Bd2 {[%clk 0:00:59.3]}
37... h6 {[%clk 0:00:12.7]} 38. Bc3 {[%clk 0:00:56]} 38... Kf7 {[%clk
0:00:12.6]} 39. Ra1 {[%clk 0:00:54.5]} 39... Rb6 {[%clk 0:00:05.9]} 40. h4
{[%clk 0:00:47.2]} 40... Nd7 {[%clk 0:00:04.3]} 41. hxg5 {[%clk 0:00:43.4]}
41... hxg5 {[%clk 0:00:05.2]} 42. Ba5 {[%clk 0:00:43.6]} 42... Rb7 {[%clk
0:00:05]} 43. Rh1 {[%clk 0:00:41.8]} 43... Ne5 {[%clk 0:00:04.6]} 44. Rh7+
{[%clk 0:00:40]} 44... Kg6 {[%clk 0:00:04.7]} 45. Rxb7 {[%clk 0:00:40]} 45...
Nxc4 {[%clk 0:00:05.4]} 46. Bc3 {[%clk 0:00:38.7]} 46... Ne3+ {[%clk 0:00:05.1]}
47. Kd3 {[%clk 0:00:37.9]} 47... Nxg4 {[%clk 0:00:06]} 48. Rb6 {[%clk
0:00:36.6]} 48... Nf2+ {[%clk 0:00:06.2]} 49. Ke3 {[%clk 0:00:36.2]} 49... Nd1+
{[%clk 0:00:05.3]} 50. Kd2 {[%clk 0:00:36.2]} 50... Nxc3 {[%clk 0:00:04.2]} 51.
Kxc3 {[%clk 0:00:35.7]} 51... g4 {[%clk 0:00:05.1]} 52. Kd2 {[%clk 0:00:32.2]}
52... Kg5 {[%clk 0:00:03.9]} 53. Ke3 {[%clk 0:00:32.3]} 53... g3 {[%clk
0:00:04]} 54. Kf3 {[%clk 0:00:31.8]} 54... f5 {[%clk 0:00:04.2]} 55. exf5 {[%clk
0:00:29.2]} 55... Kxf5 {[%clk 0:00:05.1]} 56. Rxd6 {[%clk 0:00:28.5]} 56... Ke5
{[%clk 0:00:06]} 57. Rd8 {[%clk 0:00:28]} 57... c4 {[%clk 0:00:06.9]} 58. Kxg3
{[%clk 0:00:26.3]} 58... c3 {[%clk 0:00:06.8]} 59. Rc8 {[%clk 0:00:24.8]} 59...
Kxd5 {[%clk 0:00:06.3]} 60. Rxc3 {[%clk 0:00:24.8]} 60... a5 {[%clk 0:00:07.2]}
1-0

[Event "Early-Titled-Tuesday-Blitz-October-17-2023"]
[Site "Chess.com"]
[Date "2023.10.17"]
[Round "4"]
[White "Sadykov_Ramil"]
[Black "secretsuperstar7"]
[Result "1-0"]
[WhiteElo "2609"]
[BlackElo "2446"]
[TimeControl "180+1"]
[EndTime "8:42:03 PDT"]
[Termination "Sadykov_Ramil won by resignation"]

1. d4 {[%clk 0:03:00.9]} 1... Nf6 {[%clk 0:02:56]} 2. Nc3 {[%clk 0:03:00.9]}
2... b6 {[%clk 0:02:54.8]} 3. e4 {[%clk 0:03:00.1]} 3... Bb7 {[%clk 0:02:53]} 4.
e5 {[%clk 0:02:59.5]} 4... Nd5 {[%clk 0:02:52.7]} 5. Nce2 {[%clk 0:02:47.1]}
5... c5 {[%clk 0:02:46.2]} 6. c4 {[%clk 0:02:45.2]} 6... Nc7 {[%clk 0:02:44]} 7.
d5 {[%clk 0:02:30.2]} 7... d6 {[%clk 0:02:42]} 8. exd6 {[%clk 0:02:30.1]} 8...
exd6 {[%clk 0:02:41.8]} 9. Nc3 {[%clk 0:02:24]} 9... Be7 {[%clk 0:02:41.9]} 10.
Nf3 {[%clk 0:02:18.8]} 10... O-O {[%clk 0:02:41.8]} 11. Be2 {[%clk 0:02:19.4]}
11... Ne8 {[%clk 0:02:40.6]} 12. O-O {[%clk 0:02:17.1]} 12... Nf6 {[%clk
0:02:40.8]} 13. h3 {[%clk 0:02:12.2]} 13... Nbd7 {[%clk 0:02:40.8]} 14. Bf4
{[%clk 0:02:12]} 14... a6 {[%clk 0:02:40.3]} 15. a4 {[%clk 0:02:09.1]} 15... Re8
{[%clk 0:02:36.5]} 16. Bd3 {[%clk 0:02:08.5]} 16... Bf8 {[%clk 0:02:36.2]} 17.
Qc2 {[%clk 0:02:04.5]} 17... h6 {[%clk 0:02:28.4]} 18. g4 {[%clk 0:01:57.3]}
18... Ne5 {[%clk 0:02:24]} 19. Nxe5 {[%clk 0:01:51.3]} 19... dxe5 {[%clk
0:02:24.9]} 20. Bg3 {[%clk 0:01:49.4]} 20... Bd6 {[%clk 0:02:16.8]} 21. Rae1
{[%clk 0:01:47.1]} 21... Qc7 {[%clk 0:02:14.5]} 22. Bh4 {[%clk 0:01:39.1]} 22...
e4 {[%clk 0:02:06.4]} 23. Nxe4 {[%clk 0:01:36.2]} 23... Nxe4 {[%clk 0:02:06.3]}
24. Bxe4 {[%clk 0:01:36.4]} 24... b5 {[%clk 0:02:05.9]} 25. Kg2 {[%clk
0:01:25.5]} 25... bxc4 {[%clk 0:02:01.9]} 26. Qxc4 {[%clk 0:01:22.1]} 26... a5
{[%clk 0:02:02.1]} 27. Qc2 {[%clk 0:00:59.7]} 27... Ba6 {[%clk 0:01:59.9]} 28.
Bd3 {[%clk 0:00:57.8]} 28... c4 {[%clk 0:01:55.2]} 29. Be2 {[%clk 0:00:45.7]}
29... Qb7 {[%clk 0:01:46.1]} 30. Bf3 {[%clk 0:00:44.3]} 30... c3 {[%clk
0:01:42.1]} 31. bxc3 {[%clk 0:00:37.8]} 31... Bxf1+ {[%clk 0:01:40.8]} 32. Rxf1
{[%clk 0:00:38.7]} 32... Rab8 {[%clk 0:01:38.5]} 33. c4 {[%clk 0:00:34.6]} 33...
Qb4 {[%clk 0:01:35.6]} 34. Rc1 {[%clk 0:00:32.6]} 34... Bc5 {[%clk 0:01:33.3]}
35. Bg3 {[%clk 0:00:30]} 35... Rbd8 {[%clk 0:01:27.2]} 36. h4 {[%clk 0:00:27]}
36... Re1 {[%clk 0:01:24.3]} 37. Rxe1 {[%clk 0:00:20.5]} 37... Qxe1 {[%clk
0:01:25.2]} 38. g5 {[%clk 0:00:19]} 38... hxg5 {[%clk 0:01:22.9]} 39. hxg5
{[%clk 0:00:19.9]} 39... Qe7 {[%clk 0:01:16.2]} 40. g6 {[%clk 0:00:18.9]} 40...
Bd6 {[%clk 0:01:13.6]} 41. Qf5 {[%clk 0:00:15.6]} 41... fxg6 {[%clk 0:01:10.8]}
42. Qxg6 {[%clk 0:00:15]} 42... Bxg3 {[%clk 0:01:09.6]} 43. fxg3 {[%clk
0:00:12.4]} 43... Rb8 {[%clk 0:00:57.8]} 44. Bg4 {[%clk 0:00:08]} 44... Rb2+
{[%clk 0:00:39.2]} 45. Kh3 {[%clk 0:00:08]} 45... Qf6 {[%clk 0:00:30.4]} 46.
Be6+ {[%clk 0:00:05.4]} 46... Kf8 {[%clk 0:00:30.2]} 47. Qxf6+ {[%clk
0:00:02.5]} 47... gxf6 {[%clk 0:00:31.1]} 48. c5 {[%clk 0:00:03.2]} 48... Ke7
{[%clk 0:00:30.1]} 49. Bf5 {[%clk 0:00:02.7]} 49... Rb4 {[%clk 0:00:28.5]} 50.
d6+ {[%clk 0:00:02.5]} 50... Kd8 {[%clk 0:00:27.9]} 51. c6 {[%clk 0:00:03.1]}
51... Rc4 {[%clk 0:00:23.5]} 52. c7+ {[%clk 0:00:03.5]} 52... Rxc7 {[%clk
0:00:23.2]} 53. dxc7+ {[%clk 0:00:04.4]} 53... Kxc7 {[%clk 0:00:23.8]} 54. Kg4
{[%clk 0:00:05]} 54... Kd6 {[%clk 0:00:24.3]} 55. Kh5 {[%clk 0:00:05.4]} 55...
Kc5 {[%clk 0:00:20.6]} 56. g4 {[%clk 0:00:05.6]} 56... Kb4 {[%clk 0:00:20.8]}
57. Bd7 {[%clk 0:00:06]} 1-0

[Event "Early-Titled-Tuesday-Blitz-October-17-2023"]
[Site "Chess.com"]
[Date "2023.10.17"]
[Round "4"]
[White "LeoLV10"]
[Black "GMSrinath"]
[Result "1-0"]
[WhiteElo "2591"]
[BlackElo "2847"]
[TimeControl "180+1"]
[EndTime "8:42:05 PDT"]
[Termination "LeoLV10 won by checkmate"]

1. e4 {[%clk 0:03:00.9]} 1... c5 {[%clk 0:02:57.8]} 2. Nf3 {[%clk 0:02:56.6]}
2... d6 {[%clk 0:02:58.4]} 3. d4 {[%clk 0:02:56.9]} 3... cxd4 {[%clk 0:02:59.3]}
4. Nxd4 {[%clk 0:02:57.8]} 4... Nf6 {[%clk 0:03:00]} 5. Nc3 {[%clk 0:02:58.3]}
5... Nc6 {[%clk 0:03:00.7]} 6. Bg5 {[%clk 0:02:57.6]} 6... e6 {[%clk 0:03:01.1]}
7. Qd3 {[%clk 0:02:55.7]} 7... Bd7 {[%clk 0:02:57.3]} 8. O-O-O {[%clk
0:02:54.7]} 8... a6 {[%clk 0:02:47.7]} 9. f4 {[%clk 0:02:53.3]} 9... Be7 {[%clk
0:02:46.4]} 10. Be2 {[%clk 0:02:50.9]} 10... O-O {[%clk 0:02:45.9]} 11. g4
{[%clk 0:02:46.5]} 11... Rc8 {[%clk 0:02:42.4]} 12. Nxc6 {[%clk 0:02:40]} 12...
Bxc6 {[%clk 0:02:41]} 13. Bf3 {[%clk 0:02:33.6]} 13... Qa5 {[%clk 0:02:33.1]}
14. Kb1 {[%clk 0:02:23.8]} 14... Rfd8 {[%clk 0:02:31]} 15. h4 {[%clk 0:02:23]}
15... b5 {[%clk 0:02:26]} 16. Ne2 {[%clk 0:02:20.4]} 16... b4 {[%clk 0:02:22]}
17. Nd4 {[%clk 0:02:15.5]} 17... Be8 {[%clk 0:02:20.4]} 18. Nb3 {[%clk
0:02:10.6]} 18... Qb6 {[%clk 0:02:17.9]} 19. Bxf6 {[%clk 0:02:10.5]} 19... Bxf6
{[%clk 0:02:16.2]} 20. g5 {[%clk 0:02:10.2]} 20... Be7 {[%clk 0:02:16.8]} 21. f5
{[%clk 0:02:10.3]} 21... e5 {[%clk 0:01:50.8]} 22. Bg4 {[%clk 0:01:31]} 22...
Bf8 {[%clk 0:01:48.8]} 23. h5 {[%clk 0:01:16]} 23... a5 {[%clk 0:01:42.3]} 24.
Nd2 {[%clk 0:01:12.1]} 24... Qc5 {[%clk 0:01:32.9]} 25. Nf3 {[%clk 0:00:59.1]}
25... a4 {[%clk 0:01:27]} 26. f6 {[%clk 0:00:51.1]} 26... Rc7 {[%clk 0:01:09.1]}
27. fxg7 {[%clk 0:00:45]} 27... Bxg7 {[%clk 0:01:10]} 28. Bf5 {[%clk 0:00:45.6]}
28... b3 {[%clk 0:00:57.5]} 29. cxb3 {[%clk 0:00:42.6]} 29... Bb5 {[%clk
0:00:56]} 30. Qd2 {[%clk 0:00:34.6]} 30... axb3 {[%clk 0:00:55.1]} 31. Rc1
{[%clk 0:00:24.8]} 31... Qa7 {[%clk 0:00:41.1]} 32. a3 {[%clk 0:00:25.2]} 32...
d5 {[%clk 0:00:28.3]} 33. g6 {[%clk 0:00:23.5]} 33... Rxc1+ {[%clk 0:00:21.7]}
34. Rxc1 {[%clk 0:00:21.3]} 34... h6 {[%clk 0:00:20.6]} 35. Qb4 {[%clk
0:00:13.5]} 35... Bd3+ {[%clk 0:00:18.6]} 36. Ka1 {[%clk 0:00:13.4]} 36... dxe4
{[%clk 0:00:18.7]} 37. gxf7+ {[%clk 0:00:11.6]} 37... Qxf7 {[%clk 0:00:13.5]}
38. Qb6 {[%clk 0:00:10.7]} 38... Re8 {[%clk 0:00:10.6]} 39. Nh4 {[%clk
0:00:09.8]} 39... Qf6 {[%clk 0:00:08]} 40. Qxb3+ {[%clk 0:00:08.3]} 40... Qf7
{[%clk 0:00:06]} 41. Qc3 {[%clk 0:00:06.4]} 41... Rf8 {[%clk 0:00:03.8]} 42. Bg6
{[%clk 0:00:06.5]} 42... Qe7 {[%clk 0:00:03.9]} 43. Nf5 {[%clk 0:00:07]} 43...
Qg5 {[%clk 0:00:03.4]} 44. Qb3+ {[%clk 0:00:07.3]} 44... Kh8 {[%clk 0:00:03.4]}
45. Rd1 {[%clk 0:00:04.8]} 45... Bf6 {[%clk 0:00:03.2]} 46. Nd6 {[%clk
0:00:04.4]} 46... Be7 {[%clk 0:00:01.8]} 47. Nf7+ {[%clk 0:00:04.6]} 47... Rxf7
{[%clk 0:00:02]} 48. Qxf7 {[%clk 0:00:05.5]} 48... Qg4 {[%clk 0:00:01.9]} 49.
Qh7# {[%clk 0:00:05.5]} 1-0